[Event "*** Titled Tuesday Blitz"]
[Site "Chess.com"]
[Date "2020.04.07"]
[Round "1"]
[White "Maili15"]
[Black "vinniethepooh"]
[Result "0-1"]
[WhiteElo "2284"]
[BlackElo "2621"]
[TimeControl "180+1"]
[EndTime "13:07:32 PDT"]
[Termination "vinniethepooh won on time"]

1. d4 {[%clk 0:03:00.9]} 1... Nf6 {[%clk 0:02:59.6]} 2. c4 {[%clk 0:03:00.6]}
2... e6 {[%clk 0:03:00]} 3. Nc3 {[%clk 0:03:00.7]} 3... Bb4 {[%clk 0:03:00.1]}
4. e3 {[%clk 0:02:59.8]} 4... O-O {[%clk 0:02:59.4]} 5. Ne2 {[%clk 0:02:58.2]}
5... b6 {[%clk 0:02:58.2]} 6. a3 {[%clk 0:02:55.2]} 6... Be7 {[%clk 0:02:57.4]}
7. e4 {[%clk 0:02:33.4]} 7... Bb7 {[%clk 0:02:55.1]} 8. e5 {[%clk 0:02:30.5]}
8... Ne8 {[%clk 0:02:35.2]} 9. Be3 {[%clk 0:02:19.9]} 9... d6 {[%clk 0:02:33.4]}
10. f4 {[%clk 0:02:08]} 10... Nd7 {[%clk 0:02:26.8]} 11. Qd2 {[%clk 0:01:50]}
11... g6 {[%clk 0:01:59.2]} 12. Rg1 {[%clk 0:01:41.9]} 12... h5 {[%clk
0:01:52.9]} 13. h3 {[%clk 0:01:23]} 13... h4 {[%clk 0:01:52.5]} 14. g4 {[%clk
0:01:22.3]} 14... hxg3 {[%clk 0:01:52.6]} 15. Nxg3 {[%clk 0:01:22]} 15... Ng7
{[%clk 0:01:52.3]} 16. Bd3 {[%clk 0:01:18.1]} 16... dxe5 {[%clk 0:01:38]} 17.
fxe5 {[%clk 0:01:15.3]} 17... c5 {[%clk 0:01:37.6]} 18. O-O-O {[%clk 0:01:06]}
18... cxd4 {[%clk 0:01:32.2]} 19. Bxd4 {[%clk 0:01:02.4]} 19... Nc5 {[%clk
0:00:57.5]} 20. Bc2 {[%clk 0:00:55.8]} 20... a5 {[%clk 0:00:30]} 21. Kb1 {[%clk
0:00:47.7]} 21... a4 {[%clk 0:00:25.1]} 22. Nge4 {[%clk 0:00:46.5]} 22... Nxe4
{[%clk 0:00:18.5]} 23. Nxe4 {[%clk 0:00:47.4]} 23... Bxe4 {[%clk 0:00:11.4]} 24.
Bxe4 {[%clk 0:00:47.9]} 24... Rc8 {[%clk 0:00:12.3]} 25. Qd3 {[%clk 0:00:44.4]}
25... Qc7 {[%clk 0:00:08.1]} 26. Rc1 {[%clk 0:00:35.3]} 26... Bc5 {[%clk
0:00:06.9]} 27. Bxc5 {[%clk 0:00:31.9]} 27... Qxc5 {[%clk 0:00:07.8]} 28. Bxg6
{[%clk 0:00:27.5]} 28... fxg6 {[%clk 0:00:08]} 29. Qxg6 {[%clk 0:00:28.1]} 29...
Qxe5 {[%clk 0:00:08.5]} 30. Ka1 {[%clk 0:00:14.4]} 30... Rf2 {[%clk 0:00:06.9]}
31. Rb1 {[%clk 0:00:13.1]} 31... Qf6 {[%clk 0:00:04.9]} 32. Qg3 {[%clk
0:00:10.9]} 32... Rd8 {[%clk 0:00:04.8]} 33. Rg2 {[%clk 0:00:01.2]} 33... Rf3
{[%clk 0:00:05.1]} 0-1

[Event "*** Titled Tuesday Blitz"]
[Site "Chess.com"]
[Date "2020.04.07"]
[Round "1"]
[White "Grandmaster1369"]
[Black "Tjktiger"]
[Result "0-1"]
[WhiteElo "2443"]
[BlackElo "2847"]
[TimeControl "180+1"]
[EndTime "13:07:33 PDT"]
[Termination "Tjktiger won by resignation"]

1. e4 {[%clk 0:02:58.2]} 1... c5 {[%clk 0:02:57]} 2. Nf3 {[%clk 0:01:44.7]} 2...
g6 {[%clk 0:01:44.5]} 3. d4 {[%clk 0:01:42.4]} 3... cxd4 {[%clk 0:01:44.4]} 4.
Nxd4 {[%clk 0:01:42.6]} 4... Bg7 {[%clk 0:01:44.1]} 5. c4 {[%clk 0:01:42.6]}
5... Nc6 {[%clk 0:01:44.5]} 6. Be3 {[%clk 0:01:39.8]} 6... Qb6 {[%clk
0:01:44.6]} 7. Nb5 {[%clk 0:01:33.1]} 7... Qa5+ {[%clk 0:01:44.4]} 8. N1c3
{[%clk 0:01:31.8]} 8... Nf6 {[%clk 0:01:44.1]} 9. f3 {[%clk 0:01:27]} 9... d6
{[%clk 0:01:44.2]} 10. Qd2 {[%clk 0:01:26.2]} 10... a6 {[%clk 0:01:41.1]} 11.
Nd4 {[%clk 0:01:25.6]} 11... Nxd4 {[%clk 0:01:40.3]} 12. Bxd4 {[%clk 0:01:26]}
12... O-O {[%clk 0:01:40.9]} 13. Rc1 {[%clk 0:01:21.6]} 13... Be6 {[%clk
0:01:40.9]} 14. Be2 {[%clk 0:01:15.7]} 14... Rfc8 {[%clk 0:01:40.8]} 15. b3
{[%clk 0:01:15.4]} 15... b5 {[%clk 0:01:40.8]} 16. cxb5 {[%clk 0:01:08.3]} 16...
axb5 {[%clk 0:01:41.7]} 17. Rc2 {[%clk 0:00:47.4]} 17... Bd7 {[%clk 0:01:40]}
18. Bd3 {[%clk 0:00:20.2]} 18... b4 {[%clk 0:01:37.2]} 19. Ne2 {[%clk
0:00:19.3]} 19... Rxc2 {[%clk 0:01:36.7]} 20. Bxc2 {[%clk 0:00:19.7]} 20... Qxa2
{[%clk 0:01:33.7]} 21. O-O {[%clk 0:00:18.3]} 21... Rc8 {[%clk 0:01:33.1]} 22.
Rc1 {[%clk 0:00:17.6]} 22... Be6 {[%clk 0:01:28.8]} 23. Qd3 {[%clk 0:00:16.4]}
23... Nd7 {[%clk 0:01:21.8]} 24. Bxg7 {[%clk 0:00:15.7]} 24... Kxg7 {[%clk
0:01:22.7]} 25. Nd4 {[%clk 0:00:15]} 25... Rc3 {[%clk 0:01:13.3]} 26. Qd1 {[%clk
0:00:14.8]} 26... Qa7 {[%clk 0:01:08]} 27. Ra1 {[%clk 0:00:14.1]} 27... Qb6
{[%clk 0:01:05.4]} 28. Kh1 {[%clk 0:00:13.7]} 28... Ne5 {[%clk 0:01:03.4]} 29.
f4 {[%clk 0:00:13.6]} 29... Bg4 {[%clk 0:00:47.5]} 30. Qd2 {[%clk 0:00:11.5]}
30... Nd3 {[%clk 0:00:47.7]} 31. Nf3 {[%clk 0:00:02.3]} 31... Nf2+ {[%clk
0:00:46.5]} 32. Kg1 {[%clk 0:00:02.3]} 32... Nxe4+ {[%clk 0:00:45]} 33. Qd4+
{[%clk 0:00:03]} 33... Qxd4+ {[%clk 0:00:44.7]} 34. Nxd4 {[%clk 0:00:03.8]}
34... Nc5 {[%clk 0:00:40.4]} 35. Bd1 {[%clk 0:00:02.8]} 35... Bxd1 {[%clk
0:00:39]} 0-1

[Event "*** Titled Tuesday Blitz"]
[Site "Chess.com"]
[Date "2020.04.07"]
[Round "1"]
[White "diskeleven"]
[Black "GianmarcoVaR"]
[Result "1-0"]
[WhiteElo "2344"]
[BlackElo "2640"]
[TimeControl "180+1"]
[EndTime "13:07:34 PDT"]
[Termination "diskeleven won on time"]

1. d4 {[%clk 0:03:00.9]} 1... Nf6 {[%clk 0:02:59.9]} 2. c4 {[%clk 0:03:01.2]}
2... e6 {[%clk 0:03:00.4]} 3. Nc3 {[%clk 0:03:00.9]} 3... Bb4 {[%clk 0:03:00.8]}
4. Nf3 {[%clk 0:03:01.8]} 4... b6 {[%clk 0:02:59.8]} 5. Bg5 {[%clk 0:03:01.9]}
5... h6 {[%clk 0:02:58.2]} 6. Bh4 {[%clk 0:03:01.8]} 6... Bb7 {[%clk 0:02:58.6]}
7. Nd2 {[%clk 0:03:01.2]} 7... Bxc3 {[%clk 0:02:37.6]} 8. bxc3 {[%clk
0:03:00.5]} 8... g5 {[%clk 0:02:38.1]} 9. Bg3 {[%clk 0:03:00.1]} 9... d6 {[%clk
0:02:31.8]} 10. f3 {[%clk 0:02:59.2]} 10... Qe7 {[%clk 0:02:29.6]} 11. e4 {[%clk
0:02:58.2]} 11... e5 {[%clk 0:02:29.9]} 12. Be2 {[%clk 0:02:53.5]} 12... Nbd7
{[%clk 0:02:28.4]} 13. Qa4 {[%clk 0:02:53.3]} 13... Kf8 {[%clk 0:02:17.4]} 14.
Bf2 {[%clk 0:02:44.8]} 14... Kg7 {[%clk 0:02:15.6]} 15. Nf1 {[%clk 0:02:43.1]}
15... Nf8 {[%clk 0:02:10.5]} 16. Ne3 {[%clk 0:02:42.3]} 16... Bc8 {[%clk
0:02:10.8]} 17. h4 {[%clk 0:02:34]} 17... Bd7 {[%clk 0:02:08.9]} 18. Qa3 {[%clk
0:02:33.7]} 18... Ng6 {[%clk 0:02:05]} 19. O-O-O {[%clk 0:02:13.5]} 19... c6
{[%clk 0:01:51.3]} 20. Bf1 {[%clk 0:01:52.8]} 20... c5 {[%clk 0:01:47.9]} 21. h5
{[%clk 0:01:49.8]} 21... Nf8 {[%clk 0:01:25.5]} 22. g3 {[%clk 0:01:47.9]} 22...
Rg8 {[%clk 0:01:12.9]} 23. Bh3 {[%clk 0:01:37.1]} 23... Be6 {[%clk 0:00:55.6]}
24. Bf5 {[%clk 0:01:34.3]} 24... Kh8 {[%clk 0:00:48.6]} 25. d5 {[%clk
0:01:34.5]} 25... Bd7 {[%clk 0:00:44.8]} 26. Qb2 {[%clk 0:01:33.3]} 26... N8h7
{[%clk 0:00:45]} 27. Qd2 {[%clk 0:01:32.6]} 27... b5 {[%clk 0:00:40.5]} 28. Rdg1
{[%clk 0:01:28.6]} 28... Rab8 {[%clk 0:00:32.6]} 29. Bxd7 {[%clk 0:01:28.5]}
29... Nxd7 {[%clk 0:00:29.4]} 30. Nf5 {[%clk 0:01:21.9]} 30... Qf6 {[%clk
0:00:29.7]} 31. Kc2 {[%clk 0:01:12.5]} 31... bxc4 {[%clk 0:00:17.8]} 32. g4
{[%clk 0:01:08.3]} 32... Rb6 {[%clk 0:00:12.1]} 33. Rb1 {[%clk 0:01:08.2]} 33...
Rgb8 {[%clk 0:00:12.5]} 34. Rxb6 {[%clk 0:01:07.9]} 34... axb6 {[%clk
0:00:12.5]} 35. Rb1 {[%clk 0:01:07.8]} 35... b5 {[%clk 0:00:12.9]} 36. Kd1
{[%clk 0:01:08]} 36... Ndf8 {[%clk 0:00:09.1]} 37. Qb2 {[%clk 0:01:05.7]} 37...
Qd8 {[%clk 0:00:06.8]} 38. Qa3 {[%clk 0:01:05.7]} 38... Ra8 {[%clk 0:00:05.3]}
39. Qb2 {[%clk 0:01:05.9]} 39... Ra5 {[%clk 0:00:05.5]} 40. a4 {[%clk
0:01:03.9]} 40... bxa4 {[%clk 0:00:03.4]} 41. Qb7 {[%clk 0:01:03.9]} 41... Qf6
{[%clk 0:00:01.1]} 42. Qb6 {[%clk 0:00:58.9]} 42... a3 {[%clk 0:00:01.7]} 43.
Qxa5 {[%clk 0:00:58.7]} 43... Nd7 {[%clk 0:00:02]} 44. Qxa3 {[%clk 0:00:57.1]}
44... Nhf8 {[%clk 0:00:02.9]} 45. Qa8 {[%clk 0:00:56.8]} 45... Kh7 {[%clk
0:00:02.4]} 46. Rb7 {[%clk 0:00:56.8]} 1-0

[Event "*** Titled Tuesday Blitz"]
[Site "Chess.com"]
[Date "2020.04.07"]
[Round "1"]
[White "chessasuke"]
[Black "PetrolulSah"]
[Result "1-0"]
[WhiteElo "2587"]
[BlackElo "2241"]
[TimeControl "180+1"]
[EndTime "13:07:35 PDT"]
[Termination "chessasuke won on time"]

1. d4 {[%clk 0:03:00.9]} 1... d5 {[%clk 0:02:57.2]} 2. Nf3 {[%clk 0:03:00.3]}
2... Nf6 {[%clk 0:02:55.2]} 3. Bf4 {[%clk 0:03:00.8]} 3... Bf5 {[%clk
0:02:48.7]} 4. e3 {[%clk 0:02:58.4]} 4... e6 {[%clk 0:02:45]} 5. h3 {[%clk
0:02:56.5]} 5... c5 {[%clk 0:02:44.1]} 6. Nh4 {[%clk 0:02:51.6]} 6... Be4 {[%clk
0:02:41.7]} 7. Nd2 {[%clk 0:02:51.4]} 7... Nc6 {[%clk 0:02:38.9]} 8. c3 {[%clk
0:02:50.3]} 8... Bd6 {[%clk 0:02:37.9]} 9. Bxd6 {[%clk 0:02:47.4]} 9... Qxd6
{[%clk 0:02:37.4]} 10. f4 {[%clk 0:02:45.3]} 10... O-O {[%clk 0:02:35.4]} 11.
Nhf3 {[%clk 0:02:41.7]} 11... cxd4 {[%clk 0:02:34.4]} 12. cxd4 {[%clk
0:02:34.8]} 12... Nb4 {[%clk 0:02:29.7]} 13. Nxe4 {[%clk 0:02:32.7]} 13... dxe4
{[%clk 0:02:26.8]} 14. Nd2 {[%clk 0:02:27.3]} 14... Rac8 {[%clk 0:02:23.2]} 15.
Nc4 {[%clk 0:02:18.6]} 15... Qe7 {[%clk 0:02:06.7]} 16. a3 {[%clk 0:02:17.2]}
16... Nbd5 {[%clk 0:02:05.3]} 17. Qd2 {[%clk 0:02:13.3]} 17... Nd7 {[%clk
0:01:57.8]} 18. Kf2 {[%clk 0:02:01.9]} 18... b5 {[%clk 0:01:51.2]} 19. Ne5
{[%clk 0:01:59.9]} 19... Nxe5 {[%clk 0:01:49.1]} 20. fxe5 {[%clk 0:01:41]} 20...
b4 {[%clk 0:01:31.7]} 21. Ba6 {[%clk 0:01:28.2]} 21... Rc6 {[%clk 0:01:22.9]}
22. Bb5 {[%clk 0:01:27.3]} 22... Rc7 {[%clk 0:01:22.4]} 23. Rhc1 {[%clk
0:01:25.9]} 23... Rfc8 {[%clk 0:01:19]} 24. Ba6 {[%clk 0:01:16.9]} 24... Rxc1
{[%clk 0:01:12.7]} 25. Rxc1 {[%clk 0:01:17.8]} 25... Rxc1 {[%clk 0:00:56.3]} 26.
Qxc1 {[%clk 0:01:18.7]} 26... h5 {[%clk 0:00:56.1]} 27. g3 {[%clk 0:01:16.7]}
27... h4 {[%clk 0:00:53.9]} 28. g4 {[%clk 0:01:06.3]} 28... bxa3 {[%clk
0:00:40.8]} 29. bxa3 {[%clk 0:01:05.3]} 29... f6 {[%clk 0:00:38.3]} 30. Qc8+
{[%clk 0:01:00.1]} 30... Kh7 {[%clk 0:00:37.4]} 31. Qc5 {[%clk 0:00:59.4]} 31...
Qf7 {[%clk 0:00:31.2]} 32. Ke1 {[%clk 0:00:43.7]} 32... fxe5 {[%clk 0:00:30.7]}
33. dxe5 {[%clk 0:00:44.6]} 33... Qf3 {[%clk 0:00:30]} 34. Bb7 {[%clk
0:00:42.7]} 34... Qg3+ {[%clk 0:00:26.8]} 35. Kd2 {[%clk 0:00:40.3]} 35... Qf2+
{[%clk 0:00:26.2]} 36. Kc1 {[%clk 0:00:38.1]} 36... Qe1+ {[%clk 0:00:22.2]} 37.
Kb2 {[%clk 0:00:36.3]} 37... Qd2+ {[%clk 0:00:20.7]} 38. Kb3 {[%clk 0:00:35.2]}
38... Qd3+ {[%clk 0:00:19.2]} 39. Kb2 {[%clk 0:00:32.2]} 39... Qd2+ {[%clk
0:00:18.9]} 40. Kb3 {[%clk 0:00:29.6]} 40... Qd3+ {[%clk 0:00:18.6]} 41. Ka4
{[%clk 0:00:29.6]} 41... Nb6+ {[%clk 0:00:13.7]} 42. Ka5 {[%clk 0:00:28.4]}
42... Nc4+ {[%clk 0:00:09.1]} 43. Ka6 {[%clk 0:00:27.6]} 43... Nxe5+ {[%clk
0:00:06.8]} 44. Kxa7 {[%clk 0:00:27.3]} 44... Nd7 {[%clk 0:00:04.9]} 45. Qd4
{[%clk 0:00:27.1]} 45... Qxd4+ {[%clk 0:00:04.1]} 46. exd4 {[%clk 0:00:28]}
46... e3 {[%clk 0:00:04.2]} 47. Ba6 {[%clk 0:00:28.6]} 47... e5 {[%clk
0:00:02.3]} 48. dxe5 {[%clk 0:00:26.5]} 48... Nxe5 {[%clk 0:00:02.1]} 49. a4
{[%clk 0:00:27.2]} 1-0

[Event "*** Titled Tuesday Blitz"]
[Site "Chess.com"]
[Date "2020.04.07"]
[Round "1"]
[White "saikrishnaReturns"]
[Black "Lysiak_Poltorak"]
[Result "0-1"]
[WhiteElo "2644"]
[BlackElo "2345"]
[TimeControl "180+1"]
[EndTime "13:07:36 PDT"]
[Termination "Lysiak_Poltorak won by checkmate"]

1. e4 {[%clk 0:02:59.3]} 1... c6 {[%clk 0:02:59.1]} 2. d3 {[%clk 0:02:58.6]}
2... d5 {[%clk 0:02:59.3]} 3. Nd2 {[%clk 0:02:59.5]} 3... g6 {[%clk 0:02:58.4]}
4. Ngf3 {[%clk 0:02:59.1]} 4... Bg7 {[%clk 0:02:58.8]} 5. g3 {[%clk 0:02:59.4]}
5... e6 {[%clk 0:02:57]} 6. Bg2 {[%clk 0:02:59.4]} 6... Ne7 {[%clk 0:02:57.5]}
7. O-O {[%clk 0:02:59.7]} 7... O-O {[%clk 0:02:57.6]} 8. Re1 {[%clk 0:03:00]}
8... Nd7 {[%clk 0:02:56.6]} 9. c3 {[%clk 0:02:58.7]} 9... Qb6 {[%clk 0:02:41.3]}
10. Qc2 {[%clk 0:02:56.7]} 10... a5 {[%clk 0:02:39.5]} 11. a4 {[%clk 0:02:56]}
11... Qc7 {[%clk 0:02:36.2]} 12. Nf1 {[%clk 0:02:54.2]} 12... b6 {[%clk
0:02:34]} 13. h4 {[%clk 0:02:41.4]} 13... Ba6 {[%clk 0:02:33.4]} 14. N1h2 {[%clk
0:02:38.8]} 14... Rad8 {[%clk 0:02:28.8]} 15. Ng4 {[%clk 0:02:21.8]} 15... dxe4
{[%clk 0:02:26.7]} 16. dxe4 {[%clk 0:02:19.7]} 16... h5 {[%clk 0:02:19.9]} 17.
Nh6+ {[%clk 0:01:51.5]} 17... Kh8 {[%clk 0:01:54.3]} 18. g4 {[%clk 0:01:31.1]}
18... Nc5 {[%clk 0:01:42.9]} 19. gxh5 {[%clk 0:01:30.9]} 19... Bd3 {[%clk
0:01:37.8]} 20. Qd2 {[%clk 0:01:30.7]} 20... Nb3 {[%clk 0:01:23.4]} 21. Qg5
{[%clk 0:01:12.8]} 21... f6 {[%clk 0:01:21.2]} 22. Qg4 {[%clk 0:00:47.1]} 22...
Nxc1 {[%clk 0:01:19.8]} 23. Nf7+ {[%clk 0:00:47.1]} 23... Rxf7 {[%clk
0:01:16.6]} 24. hxg6 {[%clk 0:00:47]} 24... Nxg6 {[%clk 0:01:02.7]} 25. Qh5+
{[%clk 0:00:47.2]} 25... Kg8 {[%clk 0:00:59.9]} 26. Qxg6 {[%clk 0:00:47.5]}
26... Ne2+ {[%clk 0:00:57.9]} 27. Kh1 {[%clk 0:00:46.8]} 27... Qf4 {[%clk
0:00:35.4]} 28. Rad1 {[%clk 0:00:40.3]} 28... Rdd7 {[%clk 0:00:12.3]} 29. h5
{[%clk 0:00:16.8]} 29... Bxe4 {[%clk 0:00:10.6]} 30. Rxd7 {[%clk 0:00:15.6]}
30... Bxg6 {[%clk 0:00:09.7]} 31. Rd8+ {[%clk 0:00:16]} 31... Rf8 {[%clk
0:00:09.4]} 32. Rxf8+ {[%clk 0:00:15.7]} 32... Bxf8 {[%clk 0:00:09.8]} 33. hxg6
{[%clk 0:00:15.2]} 33... Nc1 {[%clk 0:00:07.9]} 34. Rxe6 {[%clk 0:00:14.1]}
34... Bc5 {[%clk 0:00:05.7]} 35. Rxc6 {[%clk 0:00:11.1]} 35... Bxf2 {[%clk
0:00:05.2]} 36. Rc8+ {[%clk 0:00:09.9]} 36... Kg7 {[%clk 0:00:05.1]} 37. Nd4
{[%clk 0:00:09.7]} 37... Qh6+ {[%clk 0:00:04.7]} 38. Bh3 {[%clk 0:00:09.5]}
38... Qxh3# {[%clk 0:00:05]} 0-1

[Event "*** Titled Tuesday Blitz"]
[Site "Chess.com"]
[Date "2020.04.07"]
[Round "1"]
[White "fugadelafuga"]
[Black "sofaceindisguise"]
[Result "0-1"]
[WhiteElo "2307"]
[BlackElo "2638"]
[TimeControl "180+1"]
[EndTime "13:07:38 PDT"]
[Termination "sofaceindisguise won by resignation"]

1. e4 {[%clk 0:02:57]} 1... c5 {[%clk 0:02:55.6]} 2. c4 {[%clk 0:02:56.4]} 2...
Nc6 {[%clk 0:02:54.7]} 3. Nc3 {[%clk 0:02:57.3]} 3... g6 {[%clk 0:02:50.9]} 4.
g3 {[%clk 0:02:57.4]} 4... Bg7 {[%clk 0:02:51.4]} 5. Bg2 {[%clk 0:02:58.3]} 5...
d6 {[%clk 0:02:51.9]} 6. Nge2 {[%clk 0:02:58.7]} 6... Nf6 {[%clk 0:02:52.7]} 7.
a3 {[%clk 0:02:55.2]} 7... O-O {[%clk 0:02:48.9]} 8. Rb1 {[%clk 0:02:54.2]} 8...
a5 {[%clk 0:02:48.3]} 9. d3 {[%clk 0:02:53.6]} 9... Ne8 {[%clk 0:02:47.4]} 10.
O-O {[%clk 0:02:48.1]} 10... Nc7 {[%clk 0:02:47.4]} 11. Be3 {[%clk 0:02:43.1]}
11... Ne6 {[%clk 0:02:46.8]} 12. Nb5 {[%clk 0:02:42.4]} 12... Bd7 {[%clk
0:02:35.5]} 13. d4 {[%clk 0:02:31]} 13... cxd4 {[%clk 0:02:34.8]} 14. Nbxd4
{[%clk 0:02:29.3]} 14... a4 {[%clk 0:02:33.3]} 15. h3 {[%clk 0:02:19.9]} 15...
Nc5 {[%clk 0:02:31.3]} 16. Qd2 {[%clk 0:02:04.6]} 16... Qb6 {[%clk 0:02:23.6]}
17. Nxc6 {[%clk 0:01:59.1]} 17... Bxc6 {[%clk 0:02:22.3]} 18. Nc3 {[%clk
0:01:57]} 18... Rfc8 {[%clk 0:02:21.4]} 19. Kh2 {[%clk 0:01:26.1]} 19... Qd8
{[%clk 0:02:16.6]} 20. Nd5 {[%clk 0:01:14.5]} 20... b5 {[%clk 0:02:08]} 21. cxb5
{[%clk 0:00:42.1]} 21... Bxb5 {[%clk 0:02:04.7]} 22. Qd1 {[%clk 0:00:35.5]}
22... Bxf1 {[%clk 0:01:37.2]} 23. Bxf1 {[%clk 0:00:34.2]} 23... Rab8 {[%clk
0:01:36.8]} 24. Bd4 {[%clk 0:00:28.3]} 24... Bxd4 {[%clk 0:01:32.8]} 25. Qxd4
{[%clk 0:00:26.5]} 25... e5 {[%clk 0:01:28.1]} 26. Qe3 {[%clk 0:00:20.9]} 26...
Kg7 {[%clk 0:01:27.8]} 27. Nb4 {[%clk 0:00:15.9]} 27... h5 {[%clk 0:01:24.2]}
28. Rd1 {[%clk 0:00:12.8]} 28... Ne6 {[%clk 0:01:21.3]} 29. h4 {[%clk
0:00:10.7]} 29... Nd4 {[%clk 0:01:20.6]} 30. Bh3 {[%clk 0:00:10.1]} 30... Rc5
{[%clk 0:01:20.6]} 31. Nd5 {[%clk 0:00:07.7]} 31... Rxd5 {[%clk 0:01:19.7]} 32.
exd5 {[%clk 0:00:07.8]} 32... Rxb2 {[%clk 0:01:20.6]} 33. Rxd4 {[%clk
0:00:07.2]} 33... exd4 {[%clk 0:01:19.8]} 34. Qxd4+ {[%clk 0:00:06.9]} 34... Qf6
{[%clk 0:01:18.7]} 35. Qxf6+ {[%clk 0:00:05.2]} 35... Kxf6 {[%clk 0:01:14.5]}
36. Bd7 {[%clk 0:00:05.4]} 36... Rxf2+ {[%clk 0:01:12.7]} 37. Kh3 {[%clk
0:00:04.3]} 37... Ra2 {[%clk 0:01:13.6]} 38. Bxa4 {[%clk 0:00:03.5]} 38... Rxa3
{[%clk 0:01:14.5]} 39. Bc6 {[%clk 0:00:02.9]} 39... Ke5 {[%clk 0:01:12.1]} 40.
Be8 {[%clk 0:00:01.7]} 40... Rf3 {[%clk 0:01:12.1]} 41. Bc6 {[%clk 0:00:01.7]}
41... f5 {[%clk 0:01:10.4]} 42. Kg2 {[%clk 0:00:02.3]} 42... Rd3 {[%clk
0:01:10]} 43. Be8 {[%clk 0:00:02.8]} 43... Kf6 {[%clk 0:01:10.1]} 44. Bc6 {[%clk
0:00:03.4]} 44... Rd4 {[%clk 0:01:10.2]} 45. Kf3 {[%clk 0:00:03.5]} 45... Rg4
{[%clk 0:01:10.4]} 46. Bd7 {[%clk 0:00:02.9]} 46... Ke5 {[%clk 0:01:11.3]} 47.
Bc6 {[%clk 0:00:03.5]} 47... f4 {[%clk 0:01:11.1]} 48. gxf4+ {[%clk 0:00:03.3]}
48... Rxf4+ {[%clk 0:01:11.4]} 49. Kg3 {[%clk 0:00:03.6]} 49... Rd4 {[%clk
0:01:10]} 50. Kh3 {[%clk 0:00:03.8]} 50... Rxd5 {[%clk 0:01:09.9]} 51. Bxd5
{[%clk 0:00:04.1]} 51... Kxd5 {[%clk 0:01:10.8]} 52. Kg3 {[%clk 0:00:04.5]}
52... Ke4 {[%clk 0:01:11.1]} 53. Kf2 {[%clk 0:00:04.3]} 53... Kf4 {[%clk
0:01:11.3]} 54. Ke2 {[%clk 0:00:04.6]} 54... Kg4 {[%clk 0:01:12.2]} 0-1

[Event "*** Titled Tuesday Blitz"]
[Site "Chess.com"]
[Date "2020.04.07"]
[Round "1"]
[White "Eltarolo"]
[Black "Semen_Khanin"]
[Result "1-0"]
[WhiteElo "2329"]
[BlackElo "2618"]
[TimeControl "180+1"]
[EndTime "13:07:39 PDT"]
[Termination "Eltarolo won on time"]

1. e4 {[%clk 0:02:56.8]} 1... c5 {[%clk 0:02:58.7]} 2. Nf3 {[%clk 0:02:56.7]}
2... Nc6 {[%clk 0:02:59.2]} 3. Bb5 {[%clk 0:02:55.9]} 3... g6 {[%clk 0:02:59]}
4. Bxc6 {[%clk 0:02:56]} 4... dxc6 {[%clk 0:02:58.2]} 5. O-O {[%clk 0:02:56.9]}
5... Bg7 {[%clk 0:02:58.4]} 6. h3 {[%clk 0:02:57.3]} 6... Nf6 {[%clk 0:02:57.8]}
7. d3 {[%clk 0:02:57.5]} 7... b6 {[%clk 0:02:57.4]} 8. Nc3 {[%clk 0:02:57.7]}
8... Qc7 {[%clk 0:02:54.1]} 9. Be3 {[%clk 0:02:54.1]} 9... Nd7 {[%clk
0:02:52.6]} 10. Qd2 {[%clk 0:02:50.6]} 10... h6 {[%clk 0:02:52.5]} 11. a4 {[%clk
0:02:49.9]} 11... e5 {[%clk 0:02:52.2]} 12. Nh2 {[%clk 0:02:46.1]} 12... Nf8
{[%clk 0:02:51.3]} 13. f4 {[%clk 0:02:45.5]} 13... exf4 {[%clk 0:02:48.8]} 14.
Bxf4 {[%clk 0:02:45.5]} 14... Qe7 {[%clk 0:02:48.1]} 15. Kh1 {[%clk 0:02:24.6]}
15... Ne6 {[%clk 0:02:46.7]} 16. Be3 {[%clk 0:02:23.1]} 16... Nd4 {[%clk
0:02:46.1]} 17. Rf2 {[%clk 0:02:18.5]} 17... Be6 {[%clk 0:02:43.2]} 18. Nf3
{[%clk 0:02:07.9]} 18... g5 {[%clk 0:02:35.3]} 19. Ne2 {[%clk 0:02:00.9]} 19...
a5 {[%clk 0:02:29.4]} 20. Nfxd4 {[%clk 0:01:54.7]} 20... cxd4 {[%clk 0:02:28.9]}
21. Bxd4 {[%clk 0:01:54.9]} 21... O-O {[%clk 0:02:08.6]} 22. Bxg7 {[%clk
0:01:51.1]} 22... Kxg7 {[%clk 0:02:08.8]} 23. Qc3+ {[%clk 0:01:46.7]} 23... Kh7
{[%clk 0:01:59.7]} 24. Ng3 {[%clk 0:01:35.2]} 24... c5 {[%clk 0:01:57.2]} 25.
Raf1 {[%clk 0:01:23.1]} 25... Qd6 {[%clk 0:01:54.1]} 26. Nh5 {[%clk 0:01:03.4]}
26... Qd4 {[%clk 0:01:53.8]} 27. Qd2 {[%clk 0:00:48.8]} 27... Qxb2 {[%clk
0:01:50.3]} 28. Rf6 {[%clk 0:00:45.1]} 28... Rg8 {[%clk 0:01:42.1]} 29. h4
{[%clk 0:00:39.5]} 29... Qe5 {[%clk 0:01:32.4]} 30. Qe3 {[%clk 0:00:29.1]} 30...
Rg6 {[%clk 0:01:24]} 31. Rxg6 {[%clk 0:00:22.7]} 31... fxg6 {[%clk 0:01:19.3]}
32. Nf6+ {[%clk 0:00:10.5]} 32... Kg7 {[%clk 0:01:19.4]} 33. hxg5 {[%clk
0:00:11]} 33... hxg5 {[%clk 0:01:19.5]} 34. Qf3 {[%clk 0:00:07.8]} 34... Rh8+
{[%clk 0:01:18.1]} 35. Kg1 {[%clk 0:00:08.2]} 1-0